[Event "Early-Titled-Tuesday-Blitz-January-30-2024"]
[Site "Chess.com"]
[Date "2024.01.30"]
[Round "10"]
[White "ACollins05"]
[Black "PavelShkapenko"]
[Result "0-1"]
[WhiteElo "2509"]
[BlackElo "2770"]
[TimeControl "180+1"]
[EndTime "10:03:21 PST"]
[Termination "PavelShkapenko won on time"]

1. d4 {[%clk 0:02:47.3]} 1... Nf6 {[%clk 0:02:58.8]} 2. c4 {[%clk 0:02:47]} 2...
e6 {[%clk 0:02:58.8]} 3. Nf3 {[%clk 0:02:46.8]} 3... Bb4+ {[%clk 0:02:58.6]} 4.
Nbd2 {[%clk 0:02:45.6]} 4... O-O {[%clk 0:02:57]} 5. a3 {[%clk 0:02:45.6]} 5...
Be7 {[%clk 0:02:57.2]} 6. e4 {[%clk 0:02:45.7]} 6... d6 {[%clk 0:02:57]} 7. Bd3
{[%clk 0:02:43.6]} 7... c5 {[%clk 0:02:57]} 8. O-O {[%clk 0:02:30.3]} 8... cxd4
{[%clk 0:02:56.7]} 9. Nxd4 {[%clk 0:02:30.7]} 9... b6 {[%clk 0:02:57.2]} 10. b3
{[%clk 0:02:26.8]} 10... Bb7 {[%clk 0:02:57.5]} 11. Bb2 {[%clk 0:02:27.4]} 11...
Nbd7 {[%clk 0:02:57.4]} 12. Qe2 {[%clk 0:02:27.4]} 12... a6 {[%clk 0:02:55.1]}
13. Rfe1 {[%clk 0:02:25]} 13... Qc7 {[%clk 0:02:55]} 14. Rac1 {[%clk 0:02:24.4]}
14... Ne5 {[%clk 0:02:47.3]} 15. Bb1 {[%clk 0:02:22]} 15... Ng6 {[%clk
0:02:47.7]} 16. N2f3 {[%clk 0:02:16.4]} 16... Rfd8 {[%clk 0:02:33.8]} 17. Rcd1
{[%clk 0:02:13.3]} 17... Ng4 {[%clk 0:02:25.6]} 18. h3 {[%clk 0:02:09.4]} 18...
N4e5 {[%clk 0:02:25.4]} 19. Nxe5 {[%clk 0:02:08.5]} 19... Nxe5 {[%clk
0:02:22.7]} 20. Qc2 {[%clk 0:02:00.1]} 20... Ng6 {[%clk 0:02:17.1]} 21. Qe2
{[%clk 0:01:54.7]} 21... Bf6 {[%clk 0:02:14.5]} 22. Nf3 {[%clk 0:01:44.4]} 22...
Bxb2 {[%clk 0:02:13.7]} 23. Qxb2 {[%clk 0:01:45.3]} 23... e5 {[%clk 0:02:11]}
24. Bd3 {[%clk 0:01:38.8]} 24... a5 {[%clk 0:02:09.9]} 25. Bf1 {[%clk
0:01:37.8]} 25... Bc6 {[%clk 0:02:08.4]} 26. Rd2 {[%clk 0:01:36.7]} 26... Rd7
{[%clk 0:01:59]} 27. Qc2 {[%clk 0:01:35.4]} 27... Re8 {[%clk 0:01:56.9]} 28.
Red1 {[%clk 0:01:34.3]} 28... Re6 {[%clk 0:01:55.3]} 29. b4 {[%clk 0:01:32.8]}
29... h6 {[%clk 0:01:50.7]} 30. Qc3 {[%clk 0:01:29.1]} 30... Bxe4 {[%clk
0:01:48.8]} 31. c5 {[%clk 0:01:22.9]} 31... axb4 {[%clk 0:01:45.5]} 32. axb4
{[%clk 0:01:22.4]} 32... bxc5 {[%clk 0:01:39.6]} 33. bxc5 {[%clk 0:01:22]} 33...
d5 {[%clk 0:01:29.4]} 34. Bb5 {[%clk 0:01:20.8]} 34... Rd8 {[%clk 0:01:28.3]}
35. Qe3 {[%clk 0:01:14.1]} 35... Nf4 {[%clk 0:01:23]} 36. c6 {[%clk 0:01:03.9]}
36... Nxg2 {[%clk 0:00:56.1]} 37. Kxg2 {[%clk 0:01:01.8]} 37... Rf6 {[%clk
0:00:56.1]} 38. Qxe4 {[%clk 0:00:59.1]} 38... dxe4 {[%clk 0:00:51.8]} 39. Rxd8+
{[%clk 0:01:00]} 39... Kh7 {[%clk 0:00:52]} 40. Nh2 {[%clk 0:00:57.5]} 40... Qb6
{[%clk 0:00:35.9]} 41. R1d2 {[%clk 0:00:52.7]} 41... e3 {[%clk 0:00:31.5]} 42.
fxe3 {[%clk 0:00:50.6]} 42... Qxe3 {[%clk 0:00:29.7]} 43. Ng4 {[%clk 0:00:40.7]}
43... Qe4+ {[%clk 0:00:22.7]} 44. Kh2 {[%clk 0:00:35.8]} 44... Qf4+ {[%clk
0:00:22.1]} 45. Kg2 {[%clk 0:00:35.2]} 45... Qf3+ {[%clk 0:00:20.3]} 46. Kh2
{[%clk 0:00:35.1]} 46... Rxc6 {[%clk 0:00:19.3]} 47. Rf2 {[%clk 0:00:24.4]}
47... Qc3 {[%clk 0:00:12.6]} 48. Bxc6 {[%clk 0:00:23]} 48... Qxc6 {[%clk
0:00:11.7]} 49. Rxf7 {[%clk 0:00:14.1]} 49... Qc2+ {[%clk 0:00:10.3]} 50. Rf2
{[%clk 0:00:13.9]} 50... Qc7 {[%clk 0:00:09.4]} 51. Rdf8 {[%clk 0:00:12.5]}
51... e4+ {[%clk 0:00:09.5]} 52. Kh1 {[%clk 0:00:11.5]} 52... Qc6 {[%clk
0:00:08.3]} 53. Kh2 {[%clk 0:00:09]} 53... Qc7+ {[%clk 0:00:08.2]} 54. Kg2
{[%clk 0:00:08.1]} 54... Qc6 {[%clk 0:00:08.4]} 55. Kg3 {[%clk 0:00:07.7]} 55...
Qd6+ {[%clk 0:00:08.6]} 56. Kg2 {[%clk 0:00:06.8]} 56... Qd5 {[%clk 0:00:08.4]}
57. Kg1 {[%clk 0:00:06.6]} 57... Qd1+ {[%clk 0:00:07.8]} 58. Rf1 {[%clk
0:00:06.5]} 58... Qd4+ {[%clk 0:00:07.9]} 59. Kh2 {[%clk 0:00:05.9]} 59... e3
{[%clk 0:00:07.9]} 60. R8f4 {[%clk 0:00:04.2]} 60... e2 {[%clk 0:00:07.2]} 61.
Re1 {[%clk 0:00:02.7]} 61... Qxf4+ {[%clk 0:00:06.9]} 62. Kg2 {[%clk 0:00:02.6]}
62... Qd2 {[%clk 0:00:06.5]} 63. Kf2 {[%clk 0:00:02.7]} 63... Qd3 {[%clk
0:00:06.4]} 64. Kg2 {[%clk 0:00:01.6]} 64... h5 {[%clk 0:00:05.1]} 65. Nh2
{[%clk 0:00:02]} 65... Qe3 {[%clk 0:00:03.6]} 66. Nf3 {[%clk 0:00:02]} 66... g5
{[%clk 0:00:03.1]} 67. Ng1 {[%clk 0:00:02.3]} 67... g4 {[%clk 0:00:03.3]} 68.
Rxe2 {[%clk 0:00:02.5]} 68... Qd4 {[%clk 0:00:03.2]} 69. hxg4 {[%clk 0:00:02.3]}
69... hxg4 {[%clk 0:00:03.9]} 70. Rf2 {[%clk 0:00:03]} 70... Kg6 {[%clk
0:00:04.2]} 71. Ne2 {[%clk 0:00:03.4]} 71... Qe4+ {[%clk 0:00:03.9]} 72. Kh2
{[%clk 0:00:03.3]} 72... Kg5 {[%clk 0:00:04.2]} 73. Ng3 {[%clk 0:00:02.2]} 73...
Qe3 {[%clk 0:00:03.8]} 74. Kg2 {[%clk 0:00:01.5]} 74... Qb6 {[%clk 0:00:03.2]}
75. Rf5+ {[%clk 0:00:01.5]} 75... Kg6 {[%clk 0:00:03.7]} 0-1

[Event "Early-Titled-Tuesday-Blitz-January-30-2024"]
[Site "Chess.com"]
[Date "2024.01.30"]
[Round "10"]
[White "NastyaHn"]
[Black "vishwa_vijeta"]
[Result "0-1"]
[WhiteElo "2388"]
[BlackElo "2552"]
[TimeControl "180+1"]
[EndTime "10:03:21 PST"]
[Termination "vishwa_vijeta won by resignation"]

1. Nc3 {[%clk 0:03:00.9]} 1... d5 {[%clk 0:02:43.7]} 2. e4 {[%clk 0:03:00.4]}
2... dxe4 {[%clk 0:02:35.8]} 3. Nxe4 {[%clk 0:03:00.2]} 3... Nf6 {[%clk
0:02:36]} 4. Nxf6+ {[%clk 0:02:58.9]} 4... exf6 {[%clk 0:02:36.9]} 5. d4 {[%clk
0:02:59]} 5... Bd6 {[%clk 0:02:35.8]} 6. Be3 {[%clk 0:02:59.2]} 6... O-O {[%clk
0:02:29.9]} 7. Bd3 {[%clk 0:02:59.2]} 7... Re8 {[%clk 0:02:27.2]} 8. Ne2 {[%clk
0:02:59.4]} 8... c6 {[%clk 0:02:24.5]} 9. c4 {[%clk 0:02:59.1]} 9... b5 {[%clk
0:02:16.6]} 10. Qc2 {[%clk 0:02:54.9]} 10... bxc4 {[%clk 0:02:13.9]} 11. Bxc4
{[%clk 0:02:50.2]} 11... f5 {[%clk 0:02:11.7]} 12. O-O-O {[%clk 0:02:38.3]}
12... Qc7 {[%clk 0:02:05.1]} 13. g3 {[%clk 0:02:33.2]} 13... Nd7 {[%clk
0:02:03.1]} 14. Bd3 {[%clk 0:02:21.5]} 14... Nb6 {[%clk 0:02:00.9]} 15. Rhe1
{[%clk 0:02:12.9]} 15... Nd5 {[%clk 0:01:51.9]} 16. Bd2 {[%clk 0:02:12]} 16...
Be6 {[%clk 0:01:43.6]} 17. Bxf5 {[%clk 0:02:05.4]} 17... Bxf5 {[%clk 0:01:31.4]}
18. Qxf5 {[%clk 0:02:04.9]} 18... Rab8 {[%clk 0:01:32.3]} 19. Qc2 {[%clk
0:02:04.4]} 19... Bb4 {[%clk 0:01:28.9]} 20. a3 {[%clk 0:02:00.4]} 20... Bxd2+
{[%clk 0:01:26.6]} 21. Qxd2 {[%clk 0:01:59.8]} 21... c5 {[%clk 0:01:24.5]} 22.
dxc5 {[%clk 0:01:56.4]} 22... Qxc5+ {[%clk 0:01:25.4]} 23. Kb1 {[%clk
0:01:56.6]} 23... Qxa3 {[%clk 0:01:22.7]} 24. Rc1 {[%clk 0:01:22.9]} 24... Qb3
{[%clk 0:01:03.5]} 25. Nd4 {[%clk 0:01:16.7]} 25... Qa4 {[%clk 0:00:53]} 26. Nc6
{[%clk 0:00:53.7]} 26... Rxe1 {[%clk 0:00:31.1]} 27. Nxb8 {[%clk 0:00:51.6]}
27... Rxc1+ {[%clk 0:00:28.8]} 28. Qxc1 {[%clk 0:00:46.2]} 28... Qe4+ {[%clk
0:00:28.1]} 29. Qc2 {[%clk 0:00:39.1]} 29... Qe1+ {[%clk 0:00:27]} 30. Qc1
{[%clk 0:00:38.4]} 30... Qe8 {[%clk 0:00:26.4]} 31. Qc6 {[%clk 0:00:29.3]} 31...
Qe4+ {[%clk 0:00:23.7]} 32. Qc2 {[%clk 0:00:28.1]} 32... Qg4 {[%clk 0:00:20.4]}
33. Qd3 {[%clk 0:00:20.6]} 33... Qe6 {[%clk 0:00:17]} 34. Na6 {[%clk 0:00:13.3]}
34... g6 {[%clk 0:00:12.9]} 35. Qb5 {[%clk 0:00:06.3]} 35... Qe1+ {[%clk
0:00:11.9]} 36. Ka2 {[%clk 0:00:06.4]} 36... Qe6 {[%clk 0:00:11.7]} 37. Kb1
{[%clk 0:00:05.8]} 37... Qf5+ {[%clk 0:00:11.5]} 38. Ka1 {[%clk 0:00:04.7]}
38... h5 {[%clk 0:00:10]} 39. Nb4 {[%clk 0:00:03.7]} 39... Nxb4 {[%clk
0:00:07.5]} 40. Qxb4 {[%clk 0:00:04.1]} 40... Qxf2 {[%clk 0:00:07.5]} 41. Qb8+
{[%clk 0:00:04.3]} 41... Kh7 {[%clk 0:00:07.5]} 42. Qc7 {[%clk 0:00:04.6]} 42...
Kg7 {[%clk 0:00:05.6]} 43. Qe5+ {[%clk 0:00:04]} 43... Qf6 {[%clk 0:00:05.6]}
44. Qc7 {[%clk 0:00:04]} 44... Qa6+ {[%clk 0:00:03.6]} 45. Kb1 {[%clk
0:00:04.4]} 45... Qb6 {[%clk 0:00:03.9]} 46. Qe5+ {[%clk 0:00:03.8]} 46... Qf6
{[%clk 0:00:04.1]} 47. Qc7 {[%clk 0:00:03.8]} 47... g5 {[%clk 0:00:05]} 48. Qxa7
{[%clk 0:00:02.9]} 48... Qf5+ {[%clk 0:00:05.9]} 49. Ka2 {[%clk 0:00:02.4]}
49... Kg6 {[%clk 0:00:06.1]} 50. Qb6+ {[%clk 0:00:02.3]} 50... f6 {[%clk
0:00:07]} 51. Qd4 {[%clk 0:00:02.5]} 51... Qa5+ {[%clk 0:00:06.8]} 52. Kb1
{[%clk 0:00:01.9]} 52... Qe1+ {[%clk 0:00:06.5]} 53. Ka2 {[%clk 0:00:02.3]}
53... Qe2 {[%clk 0:00:07.1]} 54. Qc5 {[%clk 0:00:01.9]} 54... Qxh2 {[%clk
0:00:06.8]} 55. Ka3 {[%clk 0:00:02.4]} 55... Qxg3+ {[%clk 0:00:06.9]} 56. b3
{[%clk 0:00:02.9]} 56... h4 {[%clk 0:00:07.8]} 57. Ka4 {[%clk 0:00:02.9]} 57...
h3 {[%clk 0:00:08.3]} 58. b4 {[%clk 0:00:03.3]} 58... h2 {[%clk 0:00:08.8]} 59.
Qc2+ {[%clk 0:00:03.6]} 59... Kh6 {[%clk 0:00:08.1]} 60. Qc6 {[%clk 0:00:03.2]}
60... Qf4 {[%clk 0:00:07.7]} 61. Qh1 {[%clk 0:00:02.9]} 61... g4 {[%clk
0:00:08.2]} 62. Ka5 {[%clk 0:00:02.3]} 62... Kg5 {[%clk 0:00:08.7]} 63. b5
{[%clk 0:00:02.7]} 63... f5 {[%clk 0:00:09.6]} 64. b6 {[%clk 0:00:02.8]} 64...
g3 {[%clk 0:00:09.6]} 65. Ka6 {[%clk 0:00:03]} 65... Qf2 {[%clk 0:00:08.8]} 66.
b7 {[%clk 0:00:02.4]} 66... g2 {[%clk 0:00:08.5]} 67. Qxh2 {[%clk 0:00:02.7]}
67... g1=Q {[%clk 0:00:08.7]} 68. Qxg1+ {[%clk 0:00:02.6]} 68... Qxg1 {[%clk
0:00:09]} 69. b8=Q {[%clk 0:00:03]} 69... Qa1+ {[%clk 0:00:09.3]} 70. Kb7 {[%clk
0:00:03.4]} 70... Qb1+ {[%clk 0:00:10.2]} 71. Kc7 {[%clk 0:00:03.6]} 71... Qxb8+
{[%clk 0:00:11.1]} 72. Kxb8 {[%clk 0:00:04.2]} 72... f4 {[%clk 0:00:12]} 0-1

[Event "Early-Titled-Tuesday-Blitz-January-30-2024"]
[Site "Chess.com"]
[Date "2024.01.30"]
[Round "10"]
[White "h4parah5"]
[Black "Susal_De_Silva"]
[Result "0-1"]
[WhiteElo "2895"]
[BlackElo "2780"]
[TimeControl "180+1"]
[EndTime "10:03:34 PST"]
[Termination "Susal_De_Silva won by resignation"]

1. Nf3 {[%clk 0:02:56.9]} 1... Nf6 {[%clk 0:02:59.8]} 2. b3 {[%clk 0:02:56.5]}
2... b6 {[%clk 0:02:59.4]} 3. g3 {[%clk 0:02:55.7]} 3... Bb7 {[%clk 0:02:59.6]}
4. Bg2 {[%clk 0:02:56.1]} 4... g6 {[%clk 0:02:59.4]} 5. Bb2 {[%clk 0:02:56.6]}
5... Bg7 {[%clk 0:02:59.8]} 6. c4 {[%clk 0:02:57.2]} 6... O-O {[%clk 0:03:00]}
7. O-O {[%clk 0:02:57.6]} 7... e6 {[%clk 0:02:59.8]} 8. d4 {[%clk 0:02:57.1]}
8... d6 {[%clk 0:02:59.6]} 9. Nc3 {[%clk 0:02:55.6]} 9... Ne4 {[%clk 0:02:59.9]}
10. Qc2 {[%clk 0:02:54.7]} 10... Nxc3 {[%clk 0:03:00.1]} 11. Bxc3 {[%clk
0:02:55.6]} 11... f5 {[%clk 0:03:00.1]} 12. Rfd1 {[%clk 0:02:47.2]} 12... Be4
{[%clk 0:02:58]} 13. Qd2 {[%clk 0:02:46.6]} 13... Qe7 {[%clk 0:02:56.4]} 14. d5
{[%clk 0:02:32.9]} 14... Bxc3 {[%clk 0:02:56.2]} 15. Qxc3 {[%clk 0:02:32.2]}
15... Bxf3 {[%clk 0:02:52.8]} 16. exf3 {[%clk 0:02:31.5]} 16... e5 {[%clk
0:02:53.3]} 17. Qd2 {[%clk 0:02:14.2]} 17... f4 {[%clk 0:02:51.7]} 18. Qc3
{[%clk 0:02:05.2]} 18... Nd7 {[%clk 0:02:51.2]} 19. Bh3 {[%clk 0:02:04.3]} 19...
Nf6 {[%clk 0:02:28]} 20. Be6+ {[%clk 0:02:02.1]} 20... Kg7 {[%clk 0:02:25.9]}
21. gxf4 {[%clk 0:01:49.1]} 21... exf4 {[%clk 0:01:46.6]} 22. Re1 {[%clk
0:01:47.5]} 22... Kh6 {[%clk 0:01:43.6]} 23. Kf1 {[%clk 0:01:34.9]} 23... Nh5
{[%clk 0:01:41.6]} 24. Re4 {[%clk 0:01:14.5]} 24... Qh4 {[%clk 0:01:40.2]} 25.
h3 {[%clk 0:01:12.3]} 25... Ng7 {[%clk 0:01:39.4]} 26. Bg4 {[%clk 0:01:09.2]}
26... Nh5 {[%clk 0:01:35.4]} 27. Be6 {[%clk 0:01:04.3]} 27... Ng7 {[%clk
0:01:33.7]} 28. Bg4 {[%clk 0:00:57.6]} 28... Nh5 {[%clk 0:01:33.6]} 29. Kg2
{[%clk 0:00:54.4]} 29... Nf6 {[%clk 0:01:09.1]} 30. Re6 {[%clk 0:00:54]} 30...
Kg7 {[%clk 0:01:02.1]} 31. Rae1 {[%clk 0:00:51.7]} 31... h5 {[%clk 0:01:01.5]}
32. Re7+ {[%clk 0:00:50.8]} 32... Kh6 {[%clk 0:01:01.8]} 33. Bd7 {[%clk
0:00:36.5]} 33... Qg5+ {[%clk 0:00:38.9]} 34. Kf1 {[%clk 0:00:33.1]} 34... Qh4
{[%clk 0:00:39.8]} 35. Kg2 {[%clk 0:00:28.5]} 35... Qg5+ {[%clk 0:00:40]} 36.
Kh2 {[%clk 0:00:28.3]} 36... Qh4 {[%clk 0:00:40.9]} 37. R1e2 {[%clk 0:00:28.5]}
37... Rad8 {[%clk 0:00:29.5]} 38. Bc6 {[%clk 0:00:24.4]} 38... Rg8 {[%clk
0:00:29.9]} 39. R7e6 {[%clk 0:00:22.9]} 39... Rdf8 {[%clk 0:00:30.2]} 40. Qd4
{[%clk 0:00:19.5]} 40... Rg7 {[%clk 0:00:26.9]} 41. Kg2 {[%clk 0:00:19]} 41...
Qg5+ {[%clk 0:00:26.2]} 42. Kf1 {[%clk 0:00:18.8]} 42... Qh4 {[%clk 0:00:27.1]}
43. Ke1 {[%clk 0:00:19.3]} 43... Rgf7 {[%clk 0:00:24.9]} 44. Kd2 {[%clk
0:00:18.4]} 44... g5 {[%clk 0:00:24.7]} 45. Be8 {[%clk 0:00:16.7]} 45... Kg7
{[%clk 0:00:18.7]} 46. Bxf7 {[%clk 0:00:16.6]} 46... Rxf7 {[%clk 0:00:19.6]} 47.
Re7 {[%clk 0:00:17.1]} 47... Qxh3 {[%clk 0:00:20]} 48. Rxf7+ {[%clk 0:00:15.6]}
48... Kxf7 {[%clk 0:00:20.9]} 49. Qd3 {[%clk 0:00:15.6]} 49... h4 {[%clk
0:00:16.6]} 50. Re6 {[%clk 0:00:15.1]} 50... Qg2 {[%clk 0:00:09.7]} 51. Qf5
{[%clk 0:00:14.6]} 51... Qxf2+ {[%clk 0:00:10]} 52. Kc3 {[%clk 0:00:15]} 52...
Qxf3+ {[%clk 0:00:09.4]} 53. Kb4 {[%clk 0:00:15.3]} 53... a5+ {[%clk 0:00:07.6]}
54. Kb5 {[%clk 0:00:15.4]} 54... Qc3 {[%clk 0:00:08.5]} 55. Qxg5 {[%clk
0:00:15.3]} 55... Qb4+ {[%clk 0:00:07.1]} 56. Kc6 {[%clk 0:00:15.5]} 56... Qc5+
{[%clk 0:00:06]} 57. Kb7 {[%clk 0:00:15.8]} 57... Qd4 {[%clk 0:00:06]} 58. Qxh4
{[%clk 0:00:15.3]} 58... b5 {[%clk 0:00:06.1]} 59. Qe1 {[%clk 0:00:08]} 59...
bxc4 {[%clk 0:00:05.5]} 60. bxc4 {[%clk 0:00:07.8]} 60... Qxc4 {[%clk
0:00:04.9]} 61. Re7+ {[%clk 0:00:07.8]} 61... Kf8 {[%clk 0:00:05.4]} 62. Rxc7
{[%clk 0:00:07.7]} 62... Qxd5+ {[%clk 0:00:04.7]} 63. Kb8 {[%clk 0:00:08]} 63...
Qe5 {[%clk 0:00:03.7]} 64. Qf2 {[%clk 0:00:07.4]} 64... d5 {[%clk 0:00:04]} 65.
Qc5+ {[%clk 0:00:06.9]} 65... Kg8 {[%clk 0:00:02]} 66. Ka8 {[%clk 0:00:06.8]}
66... Ne8 {[%clk 0:00:01.8]} 67. Rc8 {[%clk 0:00:06.7]} 67... Kf7 {[%clk
0:00:01.9]} 68. Rb8 {[%clk 0:00:06.4]} 68... Nf6 {[%clk 0:00:01.8]} 69. Rb7+
{[%clk 0:00:06.6]} 69... Kg6 {[%clk 0:00:02.7]} 70. Rb6 {[%clk 0:00:06.7]} 70...
Kf5 {[%clk 0:00:03.6]} 71. Qc2+ {[%clk 0:00:06.4]} 71... Qe4 {[%clk 0:00:04.2]}
72. Qc8+ {[%clk 0:00:06.3]} 72... Kg5 {[%clk 0:00:03.9]} 73. Qd8 {[%clk
0:00:06.8]} 73... d4+ {[%clk 0:00:04.2]} 74. Ka7 {[%clk 0:00:06.8]} 74... Qf5
{[%clk 0:00:03.9]} 75. Rd6 {[%clk 0:00:06.7]} 75... f3 {[%clk 0:00:04.1]} 76.
Rxd4 {[%clk 0:00:06.7]} 76... f2 {[%clk 0:00:04.7]} 77. Rd1 {[%clk 0:00:06.9]}
77... f1=Q {[%clk 0:00:05.1]} 78. Rxf1 {[%clk 0:00:07.1]} 78... Qxf1 {[%clk
0:00:05.9]} 79. Qxa5+ {[%clk 0:00:07.8]} 79... Qf5 {[%clk 0:00:05.1]} 80. a4
{[%clk 0:00:08.7]} 80... Qxa5+ {[%clk 0:00:05.2]} 0-1

[Event "Early-Titled-Tuesday-Blitz-January-30-2024"]
[Site "Chess.com"]
[Date "2024.01.30"]
[Round "10"]
[White "Imagine_Drag0n"]
[Black "Noki102"]
[Result "1/2-1/2"]
[WhiteElo "2770"]
[BlackElo "2533"]
[TimeControl "180+1"]
[EndTime "10:03:35 PST"]
[Termination "Game drawn - insufficient material"]

1. e4 {[%clk 0:03:00.9]} 1... e5 {[%clk 0:02:59.3]} 2. Nf3 {[%clk 0:03:00.9]}
2... Nc6 {[%clk 0:02:59.1]} 3. Bc4 {[%clk 0:03:00.7]} 3... Nf6 {[%clk
0:02:55.9]} 4. d3 {[%clk 0:03:00.2]} 4... h6 {[%clk 0:02:55.7]} 5. c3 {[%clk
0:02:58.3]} 5... d6 {[%clk 0:02:49.1]} 6. O-O {[%clk 0:02:57.5]} 6... g6 {[%clk
0:02:39]} 7. a4 {[%clk 0:02:54.4]} 7... Bg7 {[%clk 0:02:37.9]} 8. a5 {[%clk
0:02:52.3]} 8... O-O {[%clk 0:02:35.5]} 9. Re1 {[%clk 0:02:48.3]} 9... Kh7
{[%clk 0:02:31.2]} 10. Nbd2 {[%clk 0:02:44.9]} 10... Be6 {[%clk 0:02:21.2]} 11.
Qb3 {[%clk 0:02:41.4]} 11... Qe7 {[%clk 0:02:19.2]} 12. Qxb7 {[%clk 0:02:36]}
12... Qd7 {[%clk 0:02:07.6]} 13. Bb5 {[%clk 0:01:56.3]} 13... Rfb8 {[%clk
0:02:06.2]} 14. Qa6 {[%clk 0:01:15.5]} 14... Nb4 {[%clk 0:02:04.2]} 15. Bxd7
{[%clk 0:01:14.7]} 15... Nxa6 {[%clk 0:02:03]} 16. Bxe6 {[%clk 0:01:14.8]} 16...
fxe6 {[%clk 0:02:02.4]} 17. Nc4 {[%clk 0:01:14.1]} 17... Nc5 {[%clk 0:02:01]}
18. Rd1 {[%clk 0:01:10.8]} 18... Nb3 {[%clk 0:01:44.8]} 19. Ra2 {[%clk
0:01:10.5]} 19... a6 {[%clk 0:01:40.5]} 20. Be3 {[%clk 0:01:09.4]} 20... Rb5
{[%clk 0:01:36.7]} 21. Nfd2 {[%clk 0:01:07]} 21... Ng4 {[%clk 0:01:32.4]} 22.
Nxb3 {[%clk 0:00:57.8]} 22... Nxe3 {[%clk 0:01:26.4]} 23. fxe3 {[%clk
0:00:57.3]} 23... Rxb3 {[%clk 0:01:26.5]} 24. Nd2 {[%clk 0:00:57.5]} 24... Rb5
{[%clk 0:01:25.2]} 25. c4 {[%clk 0:00:49.8]} 25... Rb4 {[%clk 0:01:24.2]} 26. b3
{[%clk 0:00:49.9]} 26... Rf8 {[%clk 0:01:22.2]} 27. Raa1 {[%clk 0:00:49]} 27...
h5 {[%clk 0:01:15]} 28. Rf1 {[%clk 0:00:46.6]} 28... Kg8 {[%clk 0:00:59.3]} 29.
Rxf8+ {[%clk 0:00:46]} 29... Kxf8 {[%clk 0:01:00.2]} 30. Kf2 {[%clk 0:00:45.4]}
30... Ke7 {[%clk 0:00:59.9]} 31. Ke2 {[%clk 0:00:45.6]} 31... Bh6 {[%clk
0:00:59.5]} 32. Rf1 {[%clk 0:00:42.9]} 32... c5 {[%clk 0:00:51.4]} 33. Rf3
{[%clk 0:00:42.1]} 33... Bg5 {[%clk 0:00:44.5]} 34. Kd1 {[%clk 0:00:41.6]} 34...
Bf6 {[%clk 0:00:37.8]} 35. Kc2 {[%clk 0:00:40.6]} 35... h4 {[%clk 0:00:35.9]}
36. h3 {[%clk 0:00:34.1]} 36... Bg5 {[%clk 0:00:35.5]} 37. Nb1 {[%clk
0:00:30.4]} 37... Ke8 {[%clk 0:00:32.8]} 38. Kc3 {[%clk 0:00:30.3]} 38... Bd8
{[%clk 0:00:32.5]} 39. Kc2 {[%clk 0:00:28.1]} 39... Ke7 {[%clk 0:00:29.7]} 40.
g3 {[%clk 0:00:22.2]} 40... hxg3 {[%clk 0:00:26.7]} 41. Rxg3 {[%clk 0:00:23.1]}
41... Kf6 {[%clk 0:00:26.8]} 42. Nd2 {[%clk 0:00:18.1]} 42... Bxa5 {[%clk
0:00:26.5]} 43. Nf3 {[%clk 0:00:18.6]} 43... Bd8 {[%clk 0:00:24.7]} 44. Ng5
{[%clk 0:00:18.2]} 44... a5 {[%clk 0:00:16.5]} 45. h4 {[%clk 0:00:17.7]} 45...
a4 {[%clk 0:00:06.7]} 46. bxa4 {[%clk 0:00:16.3]} 46... Rxa4 {[%clk 0:00:06.6]}
47. Rf3+ {[%clk 0:00:16.4]} 47... Ke7 {[%clk 0:00:06.8]} 48. Rf7+ {[%clk
0:00:15.9]} 48... Ke8 {[%clk 0:00:07.1]} 49. Rg7 {[%clk 0:00:15.7]} 49... Bxg5
{[%clk 0:00:07.1]} 50. hxg5 {[%clk 0:00:16.6]} 50... Ra2+ {[%clk 0:00:06.4]} 51.
Kb3 {[%clk 0:00:15.9]} 51... Rg2 {[%clk 0:00:07.3]} 52. Rxg6 {[%clk 0:00:15.7]}
52... Kf7 {[%clk 0:00:07.9]} 53. Rf6+ {[%clk 0:00:11.4]} 53... Ke7 {[%clk
0:00:08.4]} 54. Rg6 {[%clk 0:00:08.6]} 54... Kf7 {[%clk 0:00:08.4]} 55. Rf6+
{[%clk 0:00:08.1]} 55... Ke7 {[%clk 0:00:09.1]} 56. Rh6 {[%clk 0:00:08.6]} 56...
Rxg5 {[%clk 0:00:08.7]} 57. Rh7+ {[%clk 0:00:09.1]} 57... Kd8 {[%clk 0:00:08.4]}
58. Ka4 {[%clk 0:00:09.1]} 58... Rg3 {[%clk 0:00:08.6]} 59. Kb5 {[%clk
0:00:07.5]} 59... Rxe3 {[%clk 0:00:08.9]} 60. Kc6 {[%clk 0:00:05.7]} 60... Rxd3
{[%clk 0:00:09.2]} 61. Rh6 {[%clk 0:00:05]} 61... Ke7 {[%clk 0:00:09.2]} 62.
Rh7+ {[%clk 0:00:05.4]} 62... Kf6 {[%clk 0:00:09.5]} 63. Rh6+ {[%clk 0:00:05.3]}
63... Kg5 {[%clk 0:00:09.5]} 64. Rxe6 {[%clk 0:00:05.1]} 64... Kf4 {[%clk
0:00:09.2]} 65. Rxd6 {[%clk 0:00:04.1]} 65... Kxe4 {[%clk 0:00:07.3]} 66. Re6
{[%clk 0:00:02.6]} 66... Kd4 {[%clk 0:00:05.7]} 67. Kb5 {[%clk 0:00:03]} 67...
e4 {[%clk 0:00:05.3]} 68. Rd6+ {[%clk 0:00:02.8]} 68... Kc3 {[%clk 0:00:05]} 69.
Re6 {[%clk 0:00:03.2]} 69... e3 {[%clk 0:00:04.8]} 70. Kxc5 {[%clk 0:00:03.4]}
70... Kd2 {[%clk 0:00:05.1]} 71. Kb6 {[%clk 0:00:03.2]} 71... e2 {[%clk
0:00:05.4]} 72. Rxe2+ {[%clk 0:00:03.2]} 72... Kxe2 {[%clk 0:00:06.3]} 73. c5
{[%clk 0:00:04.1]} 73... Rb3+ {[%clk 0:00:06.6]} 74. Ka7 {[%clk 0:00:03.5]}
74... Rc3 {[%clk 0:00:06]} 75. Kb6 {[%clk 0:00:03.5]} 75... Kd3 {[%clk
0:00:06.6]} 76. c6 {[%clk 0:00:03.8]} 76... Kd4 {[%clk 0:00:07.3]} 77. c7 {[%clk
0:00:04.2]} 77... Kd5 {[%clk 0:00:05.9]} 78. Kb7 {[%clk 0:00:04.4]} 78... Rb3+
{[%clk 0:00:06]} 79. Ka8 {[%clk 0:00:04.8]} 79... Ra3+ {[%clk 0:00:05.8]} 80.
Kb8 {[%clk 0:00:05.3]} 80... Rb3+ {[%clk 0:00:06.1]} 81. Ka8 {[%clk 0:00:05.7]}
81... Rc3 {[%clk 0:00:06.5]} 82. Kb8 {[%clk 0:00:05.6]} 82... Kd6 {[%clk
0:00:06.2]} 83. c8=Q {[%clk 0:00:05.3]} 83... Rxc8+ {[%clk 0:00:07.1]} 84. Kxc8
{[%clk 0:00:06.2]} 1/2-1/2